[Event "Titled Tuesday Blitz July 11 Late 2023"]
[White "Lopez Gracia, Fernando"]
[Black "Thiel, Thomas"]
[WhiteFideId "2207184"]
[BlackFideId "4615964"]
[WhiteElo "2393"]
[BlackElo "2221"]
[Result "0-1"]
[Round "9"]
[TimeControl "180+2"]
[Date "2023.07.11"]
[WhiteClock "0:02:23"]
[BlackClock "0:01:41"]
[Board "101"]

1. e4 {[%clk 0:03:00]}  d5 {[%clk 0:02:58]} 2. exd5 {[%clk 0:03:00]}  Nf6 {[%clk 0:02:57]} 3. Nc3 {[%clk 0:03:01]}  Nxd5 {[%clk 0:02:56]} 4. Nf3 {[%clk 0:03:01]}  g6 {[%clk 0:02:54]} 5. Bc4 {[%clk 0:03:00]}  Nb6 {[%clk 0:02:52]} 6. Bb3 {[%clk 0:03:00]}  Bg7 {[%clk 0:02:52]} 7. O-O {[%clk 0:03:00]}  O-O {[%clk 0:02:52]} 8. d3 {[%clk 0:03:01]}  Nc6 {[%clk 0:02:50]} 9. Bg5 {[%clk 0:03:01]}  Bg4 {[%clk 0:02:48]} 10. h3 {[%clk 0:03:00]}  Bxf3 {[%clk 0:02:42]} 11. Qxf3 {[%clk 0:02:59]}  Rb8 {[%clk 0:02:35]} 12. Rfe1 {[%clk 0:02:58]}  Bf6 {[%clk 0:02:34]} 13. Bxf6 {[%clk 0:02:57]}  exf6 {[%clk 0:02:35]} 14. Ne4 {[%clk 0:02:57]}  Kg7 {[%clk 0:02:33]} 15. Re2 {[%clk 0:02:54]}  Nd4 {[%clk 0:02:32]} 16. Qe3 {[%clk 0:02:54]}  Nxe2+ {[%clk 0:02:32]} 17. Qxe2 {[%clk 0:02:55]}  Re8 {[%clk 0:02:30]} 18. Qd2 {[%clk 0:02:55]}  Rxe4 {[%clk 0:02:26]} 19. Qc3 {[%clk 0:02:51]}  Re7 {[%clk 0:02:20]} 20. a4 {[%clk 0:02:51]}  c6 {[%clk 0:02:19]} 21. a5 {[%clk 0:02:50]}  Nd5 {[%clk 0:02:19]} 22. Qd4 {[%clk 0:02:50]}  Rd7 {[%clk 0:02:12]} 23. Qg4 {[%clk 0:02:48]}  h5 {[%clk 0:02:09]} 24. Qg3 {[%clk 0:02:47]}  Qc7 {[%clk 0:02:05]} 25. Qf3 {[%clk 0:02:46]}  Re8 {[%clk 0:01:56]} 26. a6 {[%clk 0:02:43]}  b6 {[%clk 0:01:54]} 27. g3 {[%clk 0:02:40]}  Re5 {[%clk 0:01:48]} 28. c4 {[%clk 0:02:37]}  Ne7 {[%clk 0:01:46]} 29. Rc1 {[%clk 0:02:36]}  Nf5 {[%clk 0:01:41]} 30. Ba2 {[%clk 0:02:23]}  Nd4 {[%clk 0:01:41]} 0-1


[Site "https://www.chess.com"]

[Event "Titled Tuesday Blitz July 11 Late 2023"]
[White "Toktomushev, Teimur"]
[Black "Vila Dupla, Aurelio"]
[WhiteFideId "14176726"]
[BlackFideId "2203383"]
[WhiteElo "2390"]
[BlackElo "2180"]
[Result "1-0"]
[Round "9"]
[TimeControl "180+2"]
[Date "2023.07.11"]
[WhiteClock "0:00:03"]
[BlackClock "0:00:00"]
[Board "102"]

1. d4 {[%clk 0:02:51]}  Nf6 {[%clk 0:02:59]} 2. c4 {[%clk 0:02:51]}  g6 {[%clk 0:02:59]} 3. Nc3 {[%clk 0:02:49]}  d5 {[%clk 0:02:59]} 4. cxd5 {[%clk 0:02:50]}  Nxd5 {[%clk 0:02:59]} 5. e4 {[%clk 0:02:51]}  Nxc3 {[%clk 0:02:59]} 6. bxc3 {[%clk 0:02:52]}  Bg7 {[%clk 0:02:59]} 7. Be3 {[%clk 0:02:53]}  c5 {[%clk 0:02:58]} 8. Qd2 {[%clk 0:02:54]}  Qa5 {[%clk 0:02:58]} 9. Nf3 {[%clk 0:02:53]}  O-O {[%clk 0:02:57]} 10. Rc1 {[%clk 0:02:52]}  cxd4 {[%clk 0:02:57]} 11. cxd4 {[%clk 0:02:53]}  Qxd2+ {[%clk 0:02:56]} 12. Nxd2 {[%clk 0:02:54]}  e6 {[%clk 0:02:55]} 13. Nb3 {[%clk 0:02:41]}  Rd8 {[%clk 0:02:51]} 14. Bg5 {[%clk 0:02:36]}  f6 {[%clk 0:02:28]} 15. Be3 {[%clk 0:02:27]}  Bd7 {[%clk 0:02:27]} 16. Bc4 {[%clk 0:01:53]}  Nc6 {[%clk 0:02:10]} 17. Nc5 {[%clk 0:01:44]}  Kf7 {[%clk 0:01:48]} 18. Nxb7 {[%clk 0:01:26]}  Rdc8 {[%clk 0:01:34]} 19. Nd6+ {[%clk 0:00:16]}  Ke7 {[%clk 0:01:29]} 20. Nxc8+ {[%clk 0:00:17]}  Rxc8 {[%clk 0:01:28]} 21. O-O {[%clk 0:00:15]}  Na5 {[%clk 0:00:58]} 22. Ba6 {[%clk 0:00:14]}  Rb8 {[%clk 0:00:58]} 23. d5 {[%clk 0:00:12]}  exd5 {[%clk 0:00:54]} 24. exd5 {[%clk 0:00:13]}  Rb2 {[%clk 0:00:17]} 25. Bxa7 {[%clk 0:00:09]}  Rxa2 {[%clk 0:00:14]} 26. Rfe1+ {[%clk 0:00:06]}  Kf7 {[%clk 0:00:09]} 27. Bc5 {[%clk 0:00:03]}  Bf8 {[%clk 0:00:07]} 28. Bxf8 {[%clk 0:00:03]}  Kxf8 {[%clk 0:00:07]} 29. Rc7 {[%clk 0:00:02]}  Ba4 {[%clk 0:00:00]} 30. d6 {[%clk 0:00:03]} 1-0


[Site "https://www.chess.com"]

[Event "Titled Tuesday Blitz July 11 Late 2023"]
[White "Navyblue1"]
[Black "Carrasco Miranda, Andres"]
[BlackFideId "3405990"]
[WhiteElo "1866"]
[BlackElo "2387"]
[Result "1/2-1/2"]
[Round "9"]
[TimeControl "180+2"]
[Date "2023.07.11"]
[WhiteClock "0:00:11"]
[BlackClock "0:00:14"]
[Board "103"]

1. d4 {[%clk 0:03:00]}  Nf6 {[%clk 0:02:48]} 2. c4 {[%clk 0:02:59]}  g6 {[%clk 0:02:46]} 3. Nc3 {[%clk 0:02:55]}  d5 {[%clk 0:02:37]} 4. Nf3 {[%clk 0:02:54]}  Bg7 {[%clk 0:02:37]} 5. Qb3 {[%clk 0:02:51]}  dxc4 {[%clk 0:02:36]} 6. Qxc4 {[%clk 0:02:50]}  O-O {[%clk 0:02:37]} 7. e4 {[%clk 0:02:50]}  Nc6 {[%clk 0:02:37]} 8. d5 {[%clk 0:02:41]}  Na5 {[%clk 0:02:36]} 9. Qa4 {[%clk 0:02:27]}  c6 {[%clk 0:02:26]} 10. dxc6 {[%clk 0:02:25]}  Nxc6 {[%clk 0:02:24]} 11. Bd2 {[%clk 0:02:20]}  Bd7 {[%clk 0:02:22]} 12. Be2 {[%clk 0:02:07]}  a5 {[%clk 0:02:04]} 13. Bb5 {[%clk 0:01:35]}  Nb4 {[%clk 0:01:57]} 14. O-O {[%clk 0:01:14]}  Bxb5 {[%clk 0:01:55]} 15. Qxb5 {[%clk 0:01:08]}  Qd3 {[%clk 0:01:41]} 16. Qxd3 {[%clk 0:01:04]}  Nxd3 {[%clk 0:01:42]} 17. Rab1 {[%clk 0:01:02]}  Rfd8 {[%clk 0:01:38]} 18. h3 {[%clk 0:00:56]}  Ne5 {[%clk 0:01:31]} 19. Nxe5 {[%clk 0:00:50]}  Rxd2 {[%clk 0:01:31]} 20. Nf3 {[%clk 0:00:49]}  Rd7 {[%clk 0:01:26]} 21. Ne5 {[%clk 0:00:28]}  Rd2 {[%clk 0:01:16]} 22. Nf3 {[%clk 0:00:26]}  Rdd8 {[%clk 0:01:13]} 23. Rfd1 {[%clk 0:00:23]}  e6 {[%clk 0:01:06]} 24. Kf1 {[%clk 0:00:19]}  Nd7 {[%clk 0:01:03]} 25. Ke2 {[%clk 0:00:18]}  Nc5 {[%clk 0:01:01]} 26. e5 {[%clk 0:00:17]}  Kf8 {[%clk 0:00:38]} 27. Nb5 {[%clk 0:00:16]}  Ke7 {[%clk 0:00:33]} 28. b3 {[%clk 0:00:13]}  b6 {[%clk 0:00:28]} 29. Rxd8 {[%clk 0:00:12]}  Rxd8 {[%clk 0:00:27]} 30. Rc1 {[%clk 0:00:12]}  Bh6 {[%clk 0:00:25]} 31. Rc2 {[%clk 0:00:12]}  Rd5 {[%clk 0:00:20]} 32. Nbd4 {[%clk 0:00:12]}  Bg7 {[%clk 0:00:15]} 33. Ke3 {[%clk 0:00:09]}  Bxe5 {[%clk 0:00:15]} 34. Nc6+ {[%clk 0:00:08]}  Kf6 {[%clk 0:00:15]} 35. Ncxe5 {[%clk 0:00:08]}  Rxe5+ {[%clk 0:00:15]} 36. Nxe5 {[%clk 0:00:09]}  Kxe5 {[%clk 0:00:16]} 37. f4+ {[%clk 0:00:09]}  Kd5 {[%clk 0:00:16]} 38. Rc4 {[%clk 0:00:09]}  f5 {[%clk 0:00:15]} 39. Rd4+ {[%clk 0:00:09]}  Kc6 {[%clk 0:00:16]} 40. Rc4 {[%clk 0:00:10]}  Kd5 {[%clk 0:00:16]} 41. Rd4+ {[%clk 0:00:10]}  Kc6 {[%clk 0:00:16]} 42. Rc4 {[%clk 0:00:11]}  Kd5 {[%clk 0:00:14]} 1/2-1/2


[Site "https://www.chess.com"]

[Event "Titled Tuesday Blitz July 11 Late 2023"]
[White "Papayan, Oleg"]
[Black "Ricaurte Lopez, Juan Carlos"]
[WhiteFideId "4193911"]
[BlackFideId "3600327"]
[WhiteElo "2476"]
[BlackElo "2143"]
[Result "1-0"]
[Round "9"]
[TimeControl "180+2"]
[Date "2023.07.11"]
[WhiteClock "0:00:18"]
[BlackClock "0:00:00"]
[Board "104"]

1. d4 {[%clk 0:03:00]}  c5 {[%clk 0:03:00]} 2. d5 {[%clk 0:03:00]}  e5 {[%clk 0:02:58]} 3. e4 {[%clk 0:03:01]}  d6 {[%clk 0:02:57]} 4. Bb5+ {[%clk 0:03:01]}  Bd7 {[%clk 0:02:54]} 5. a4 {[%clk 0:03:01]}  Na6 {[%clk 0:02:51]} 6. Bxa6 {[%clk 0:02:53]}  Qa5+ {[%clk 0:02:47]} 7. Nc3 {[%clk 0:02:45]}  Qxa6 {[%clk 0:02:46]} 8. Be3 {[%clk 0:02:44]}  f5 {[%clk 0:02:33]} 9. f3 {[%clk 0:02:31]}  f4 {[%clk 0:02:29]} 10. Bf2 {[%clk 0:02:30]}  Nf6 {[%clk 0:02:29]} 11. Nge2 {[%clk 0:02:30]}  Be7 {[%clk 0:02:26]} 12. b3 {[%clk 0:02:26]}  O-O {[%clk 0:02:24]} 13. Qd3 {[%clk 0:02:25]}  Qxd3 {[%clk 0:02:18]} 14. cxd3 {[%clk 0:02:25]}  a6 {[%clk 0:02:12]} 15. a5 {[%clk 0:02:16]}  Rfb8 {[%clk 0:02:09]} 16. Kd2 {[%clk 0:02:05]}  b5 {[%clk 0:02:05]} 17. axb6 {[%clk 0:01:59]}  Rxb6 {[%clk 0:02:05]} 18. Kc2 {[%clk 0:01:58]}  Kf7 {[%clk 0:01:47]} 19. Ra3 {[%clk 0:01:58]}  g5 {[%clk 0:01:44]} 20. h3 {[%clk 0:01:44]}  h5 {[%clk 0:01:40]} 21. Rha1 {[%clk 0:01:40]}  Kg6 {[%clk 0:01:37]} 22. Na4 {[%clk 0:01:37]}  Rb7 {[%clk 0:01:24]} 23. Nb2 {[%clk 0:01:36]}  Bb5 {[%clk 0:00:52]} 24. Nc3 {[%clk 0:01:24]}  Rab8 {[%clk 0:00:45]} 25. Nc4 {[%clk 0:01:13]}  g4 {[%clk 0:00:42]} 26. Rxa6 {[%clk 0:00:57]}  Bxa6 {[%clk 0:00:38]} 27. Rxa6 {[%clk 0:00:57]}  Rxb3 {[%clk 0:00:33]} 28. hxg4 {[%clk 0:00:40]}  hxg4 {[%clk 0:00:30]} 29. fxg4 {[%clk 0:00:41]}  Nxg4 {[%clk 0:00:28]} 30. Be1 {[%clk 0:00:37]}  Ne3+ {[%clk 0:00:22]} 31. Nxe3 {[%clk 0:00:37]}  Rb2+ {[%clk 0:00:20]} 32. Kc1 {[%clk 0:00:36]}  fxe3 {[%clk 0:00:20]} 33. Nd1 {[%clk 0:00:22]}  Rxg2 {[%clk 0:00:11]} 34. Nxe3 {[%clk 0:00:22]}  Bg5 {[%clk 0:00:07]} 35. Rxd6+ {[%clk 0:00:18]}  Kf7 {[%clk 0:00:00]} 36. Bd2 {[%clk 0:00:18]} 1-0


[Site "https://www.chess.com"]

[Event "Titled Tuesday Blitz July 11 Late 2023"]
[White "Guzman Moneo, Alberto"]
[Black "Weisz, Bryan"]
[WhiteFideId "2209616"]
[BlackFideId "30934133"]
[WhiteElo "2386"]
[BlackElo "2320"]
[Result "1-0"]
[Round "9"]
[TimeControl "180+2"]
[Date "2023.07.11"]
[WhiteClock "0:01:01"]
[BlackClock "0:00:00"]
[Board "105"]

1. e4 {[%clk 0:03:00]}  e6 {[%clk 0:02:51]} 2. d3 {[%clk 0:03:00]}  Qh4 {[%clk 0:02:47]} 3. Nd2 {[%clk 0:03:01]}  Bc5 {[%clk 0:02:47]} 4. g3 {[%clk 0:02:55]}  Qf6 {[%clk 0:02:44]} 5. Ngf3 {[%clk 0:02:47]}  g5 {[%clk 0:02:44]} 6. e5 {[%clk 0:02:38]}  Qg7 {[%clk 0:02:39]} 7. Ne4 {[%clk 0:02:35]}  Be7 {[%clk 0:02:35]} 8. Nexg5 {[%clk 0:02:28]}  d6 {[%clk 0:02:25]} 9. d4 {[%clk 0:02:23]}  Nc6 {[%clk 0:02:25]} 10. exd6 {[%clk 0:02:20]}  cxd6 {[%clk 0:02:17]} 11. Bg2 {[%clk 0:02:11]}  Nf6 {[%clk 0:01:44]} 12. O-O {[%clk 0:02:07]}  Bd7 {[%clk 0:01:32]} 13. Re1 {[%clk 0:02:04]}  O-O-O {[%clk 0:01:29]} 14. c3 {[%clk 0:02:01]}  h5 {[%clk 0:01:26]} 15. h4 {[%clk 0:02:01]}  Ng4 {[%clk 0:01:26]} 16. b4 {[%clk 0:01:53]}  Qg6 {[%clk 0:01:13]} 17. b5 {[%clk 0:01:43]}  Na5 {[%clk 0:01:13]} 18. Qa4 {[%clk 0:01:41]}  b6 {[%clk 0:01:11]} 19. c4 {[%clk 0:01:36]}  Kb8 {[%clk 0:00:35]} 20. Bf4 {[%clk 0:01:35]}  Rc8 {[%clk 0:00:32]} 21. c5 {[%clk 0:01:33]}  e5 {[%clk 0:00:27]} 22. dxe5 {[%clk 0:01:25]}  Rxc5 {[%clk 0:00:22]} 23. exd6 {[%clk 0:01:20]}  Bxd6 {[%clk 0:00:19]} 24. Bxd6+ {[%clk 0:01:17]}  Qxd6 {[%clk 0:00:20]} 25. Nxf7 {[%clk 0:01:16]}  Qf6 {[%clk 0:00:14]} 26. Nxh8 {[%clk 0:01:14]}  Qxh8 {[%clk 0:00:12]} 27. Qf4+ {[%clk 0:01:14]}  Kc8 {[%clk 0:00:07]} 28. Rac1 {[%clk 0:01:12]}  Nb7 {[%clk 0:00:05]} 29. Ng5 {[%clk 0:01:10]}  Qb2 {[%clk 0:00:03]} 30. Ne4 {[%clk 0:01:03]}  Rxc1 {[%clk 0:00:02]} 31. Rxc1+ {[%clk 0:01:03]}  Nc5 {[%clk 0:00:01]} 32. Nxc5 {[%clk 0:01:01]}  bxc5 {[%clk 0:00:00]} 33. Rxc5+ {[%clk 0:01:01]} 1-0


[Site "https://www.chess.com"]

[Event "Titled Tuesday Blitz July 11 Late 2023"]
[White "AndresDelgado77"]
[Black "Campos, Maria Jose"]
[BlackFideId "146803"]
[WhiteElo "2309"]
[BlackElo "2376"]
[Result "1-0"]
[Round "9"]
[TimeControl "180+2"]
[Date "2023.07.11"]
[WhiteClock "0:00:30"]
[BlackClock "0:01:41"]
[Board "106"]

1. e4 {[%clk 0:03:00]}  e5 {[%clk 0:02:55]} 2. Nc3 {[%clk 0:02:59]}  Nf6 {[%clk 0:02:55]} 3. d4 {[%clk 0:02:51]}  exd4 {[%clk 0:02:51]} 4. Qxd4 {[%clk 0:02:51]}  Nc6 {[%clk 0:02:52]} 5. Qc4 {[%clk 0:02:52]}  g6 {[%clk 0:02:49]} 6. Bg5 {[%clk 0:02:48]}  Bg7 {[%clk 0:02:49]} 7. O-O-O {[%clk 0:02:10]}  O-O {[%clk 0:02:48]} 8. f4 {[%clk 0:02:04]}  h6 {[%clk 0:02:45]} 9. Bh4 {[%clk 0:02:04]}  Qe8 {[%clk 0:02:29]} 10. e5 {[%clk 0:02:00]}  Nh5 {[%clk 0:02:24]} 11. Nd5 {[%clk 0:01:35]}  Nxe5 {[%clk 0:02:24]} 12. fxe5 {[%clk 0:01:21]}  Qxe5 {[%clk 0:02:22]} 13. c3 {[%clk 0:01:03]}  c6 {[%clk 0:02:18]} 14. Ne7+ {[%clk 0:01:01]}  Kh7 {[%clk 0:02:17]} 15. Nf3 {[%clk 0:00:59]}  Qa5 {[%clk 0:02:11]} 16. Nxc8 {[%clk 0:00:55]}  d5 {[%clk 0:02:06]} 17. Qb4 {[%clk 0:00:50]}  Qxb4 {[%clk 0:02:04]} 18. cxb4 {[%clk 0:00:50]}  Raxc8 {[%clk 0:02:04]} 19. Be7 {[%clk 0:00:41]}  Rfe8 {[%clk 0:02:03]} 20. Bd6 {[%clk 0:00:42]}  Re6 {[%clk 0:02:01]} 21. Bg3 {[%clk 0:00:40]}  f5 {[%clk 0:01:55]} 22. Bd3 {[%clk 0:00:38]}  Kh8 {[%clk 0:01:48]} 23. Rhe1 {[%clk 0:00:37]}  Rce8 {[%clk 0:01:48]} 24. Rxe6 {[%clk 0:00:36]}  Rxe6 {[%clk 0:01:49]} 25. Re1 {[%clk 0:00:37]}  Rxe1+ {[%clk 0:01:47]} 26. Bxe1 {[%clk 0:00:36]}  Kg8 {[%clk 0:01:45]} 27. g3 {[%clk 0:00:35]}  Kf7 {[%clk 0:01:45]} 28. Bc3 {[%clk 0:00:35]}  Bf8 {[%clk 0:01:45]} 29. a3 {[%clk 0:00:34]}  Ke6 {[%clk 0:01:43]} 30. Nd4+ {[%clk 0:00:33]}  Kd6 {[%clk 0:01:43]} 31. Nf3 {[%clk 0:00:30]}  Nf6 {[%clk 0:01:41]} 32. Bxf6 {[%clk 0:00:30]} 1-0


[Site "https://www.chess.com"]

[Event "Titled Tuesday Blitz July 11 Late 2023"]
[White "Balla, Tamas-Kristof"]
[Black "Fominykh, Maria"]
[WhiteFideId "1208497"]
[BlackFideId "4142411"]
[WhiteElo "2372"]
[BlackElo "2206"]
[Result "1-0"]
[Round "9"]
[TimeControl "180+2"]
[Date "2023.07.11"]
[WhiteClock "0:00:03"]
[BlackClock "0:00:00"]
[Board "107"]

1. e4 {[%clk 0:03:00]}  e6 {[%clk 0:02:58]} 2. d4 {[%clk 0:02:58]}  d5 {[%clk 0:02:58]} 3. Nd2 {[%clk 0:02:59]}  c5 {[%clk 0:02:53]} 4. exd5 {[%clk 0:02:58]}  Qxd5 {[%clk 0:02:52]} 5. Ngf3 {[%clk 0:02:58]}  cxd4 {[%clk 0:02:52]} 6. Bc4 {[%clk 0:02:58]}  Qd8 {[%clk 0:02:51]} 7. O-O {[%clk 0:02:59]}  Nc6 {[%clk 0:02:51]} 8. Nb3 {[%clk 0:02:58]}  Nf6 {[%clk 0:02:47]} 9. Nbxd4 {[%clk 0:02:57]}  Nxd4 {[%clk 0:02:47]} 10. Nxd4 {[%clk 0:02:57]}  Qc7 {[%clk 0:02:45]} 11. Bb3 {[%clk 0:02:55]}  a6 {[%clk 0:02:39]} 12. Re1 {[%clk 0:02:55]}  Be7 {[%clk 0:02:21]} 13. Qf3 {[%clk 0:02:32]}  O-O {[%clk 0:02:15]} 14. c3 {[%clk 0:02:32]}  Bd7 {[%clk 0:01:54]} 15. Bg5 {[%clk 0:02:26]}  b5 {[%clk 0:01:44]} 16. Bc2 {[%clk 0:02:09]}  h6 {[%clk 0:01:24]} 17. Bf4 {[%clk 0:02:03]}  Qc5 {[%clk 0:01:11]} 18. Rad1 {[%clk 0:01:57]}  Rad8 {[%clk 0:01:03]} 19. Qd3 {[%clk 0:01:30]}  Bc8 {[%clk 0:00:55]} 20. Be5 {[%clk 0:01:27]}  g6 {[%clk 0:00:51]} 21. Qg3 {[%clk 0:01:02]}  Kh7 {[%clk 0:00:33]} 22. h3 {[%clk 0:00:50]}  Nh5 {[%clk 0:00:28]} 23. Qf3 {[%clk 0:00:45]}  f5 {[%clk 0:00:23]} 24. Bh2 {[%clk 0:00:34]}  Ng7 {[%clk 0:00:20]} 25. Re5 {[%clk 0:00:31]}  Qb6 {[%clk 0:00:18]} 26. Rde1 {[%clk 0:00:31]}  Bf6 {[%clk 0:00:16]} 27. R5e2 {[%clk 0:00:19]}  Bxd4 {[%clk 0:00:15]} 28. cxd4 {[%clk 0:00:20]}  Qxd4 {[%clk 0:00:15]} 29. Be5 {[%clk 0:00:19]}  Qd5 {[%clk 0:00:15]} 30. Qc3 {[%clk 0:00:17]}  Rf7 {[%clk 0:00:14]} 31. Bb3 {[%clk 0:00:17]}  Qd3 {[%clk 0:00:13]} 32. Qa5 {[%clk 0:00:15]}  Rd5 {[%clk 0:00:09]} 33. Bxd5 {[%clk 0:00:14]}  Qxd5 {[%clk 0:00:09]} 34. Qc3 {[%clk 0:00:08]}  Bb7 {[%clk 0:00:09]} 35. f3 {[%clk 0:00:06]}  Nh5 {[%clk 0:00:08]} 36. Bh2 {[%clk 0:00:04]}  Qxa2 {[%clk 0:00:07]} 37. Rxe6 {[%clk 0:00:04]}  Ng7 {[%clk 0:00:07]} 38. Re7 {[%clk 0:00:02]}  Qd5 {[%clk 0:00:06]} 39. Rxf7 {[%clk 0:00:02]}  Qxf7 {[%clk 0:00:06]} 40. Qc7 {[%clk 0:00:03]}  Qxc7 {[%clk 0:00:05]} 41. Bxc7 {[%clk 0:00:04]}  Kg8 {[%clk 0:00:05]} 42. Re7 {[%clk 0:00:04]}  Bd5 {[%clk 0:00:05]} 43. Be5 {[%clk 0:00:05]}  Ne6 {[%clk 0:00:05]} 44. Ra7 {[%clk 0:00:05]}  Nc5 {[%clk 0:00:03]} 45. Rg7+ {[%clk 0:00:05]}  Kf8 {[%clk 0:00:03]} 46. Rxg6 {[%clk 0:00:05]}  Nd3 {[%clk 0:00:03]} 47. Bc3 {[%clk 0:00:03]}  h5 {[%clk 0:00:03]} 48. Rg5 {[%clk 0:00:03]}  Be6 {[%clk 0:00:03]} 49. Rxh5 {[%clk 0:00:04]}  Nf4 {[%clk 0:00:03]} 50. Rh6 {[%clk 0:00:04]}  a5 {[%clk 0:00:03]} 51. Rf6+ {[%clk 0:00:04]}  Ke7 {[%clk 0:00:02]} 52. Rh6 {[%clk 0:00:05]}  b4 {[%clk 0:00:02]} 53. Be5 {[%clk 0:00:05]}  Ne2+ {[%clk 0:00:02]} 54. Kh2 {[%clk 0:00:05]}  a4 {[%clk 0:00:03]} 55. Rh7+ {[%clk 0:00:05]}  Ke8 {[%clk 0:00:02]} 56. Bd6 {[%clk 0:00:06]}  Bf7 {[%clk 0:00:02]} 57. Bxb4 {[%clk 0:00:05]}  Nd4 {[%clk 0:00:02]} 58. Rh8+ {[%clk 0:00:05]}  Kd7 {[%clk 0:00:02]} 59. Bc3 {[%clk 0:00:05]}  Ne6 {[%clk 0:00:02]} 60. Rh7 {[%clk 0:00:05]}  Ke8 {[%clk 0:00:02]} 61. Rh4 {[%clk 0:00:04]}  f4 {[%clk 0:00:01]} 62. Rh6 {[%clk 0:00:03]}  Kd7 {[%clk 0:00:01]} 63. Rf6 {[%clk 0:00:04]}  Ke8 {[%clk 0:00:02]} 64. Rh6 {[%clk 0:00:03]}  Ng5 {[%clk 0:00:02]} 65. Rh8+ {[%clk 0:00:03]}  Kd7 {[%clk 0:00:02]} 66. Ra8 {[%clk 0:00:04]}  Bb3 {[%clk 0:00:01]} 67. Rb8 {[%clk 0:00:04]}  Kc6 {[%clk 0:00:01]} 68. Rh8 {[%clk 0:00:03]}  Ne6 {[%clk 0:00:01]} 69. h4 {[%clk 0:00:03]}  Kd5 {[%clk 0:00:01]} 70. h5 {[%clk 0:00:04]}  Kc4 {[%clk 0:00:02]} 71. h6 {[%clk 0:00:04]}  a3 {[%clk 0:00:02]} 72. Ra8 {[%clk 0:00:03]}  a2 {[%clk 0:00:02]} 73. h7 {[%clk 0:00:03]}  Nc7 {[%clk 0:00:01]} 74. Ra7 {[%clk 0:00:03]}  Nb5 {[%clk 0:00:00]} 75. Ra5 {[%clk 0:00:03]} 1-0


[Site "https://www.chess.com"]

[Event "Titled Tuesday Blitz July 11 Late 2023"]
[White "Kohler, Aran"]
[Black "KorolDimitriy75"]
[WhiteFideId "1002856"]
[WhiteElo "2236"]
[BlackElo "2408"]
[Result "1-0"]
[Round "9"]
[TimeControl "180+2"]
[Date "2023.07.11"]
[WhiteClock "0:01:28"]
[BlackClock "0:00:00"]
[Board "109"]

1. e4 {[%clk 0:03:00]}  c5 {[%clk 0:02:59]} 2. Nc3 {[%clk 0:02:58]}  g6 {[%clk 0:02:59]} 3. f4 {[%clk 0:02:54]}  Bg7 {[%clk 0:02:59]} 4. Nf3 {[%clk 0:02:54]}  Nc6 {[%clk 0:02:59]} 5. Bc4 {[%clk 0:02:53]}  e6 {[%clk 0:02:59]} 6. d3 {[%clk 0:02:49]}  Nge7 {[%clk 0:02:58]} 7. a3 {[%clk 0:02:47]}  O-O {[%clk 0:02:58]} 8. Ba2 {[%clk 0:02:47]}  Nd4 {[%clk 0:02:55]} 9. O-O {[%clk 0:02:44]}  d5 {[%clk 0:02:43]} 10. Nxd4 {[%clk 0:02:41]}  cxd4 {[%clk 0:02:42]} 11. Ne2 {[%clk 0:02:40]}  dxe4 {[%clk 0:02:32]} 12. dxe4 {[%clk 0:02:39]}  Nc6 {[%clk 0:02:32]} 13. Kh1 {[%clk 0:02:38]}  Kh8 {[%clk 0:02:20]} 14. Bc4 {[%clk 0:02:30]}  Qc7 {[%clk 0:01:51]} 15. Bd3 {[%clk 0:02:29]}  f5 {[%clk 0:01:50]} 16. e5 {[%clk 0:02:28]}  b6 {[%clk 0:01:44]} 17. Bd2 {[%clk 0:02:24]}  Bb7 {[%clk 0:01:42]} 18. Qe1 {[%clk 0:02:23]}  Rac8 {[%clk 0:01:30]} 19. Rc1 {[%clk 0:02:22]}  Rfd8 {[%clk 0:01:27]} 20. Qh4 {[%clk 0:02:21]}  Ne7 {[%clk 0:00:57]} 21. Qh3 {[%clk 0:02:11]}  Be4 {[%clk 0:00:49]} 22. Bxe4 {[%clk 0:02:00]}  fxe4 {[%clk 0:00:48]} 23. Qxe6 {[%clk 0:02:01]}  Nf5 {[%clk 0:00:21]} 24. Ng3 {[%clk 0:01:58]}  e3 {[%clk 0:00:13]} 25. Bb4 {[%clk 0:01:51]}  a5 {[%clk 0:00:11]} 26. Nxf5 {[%clk 0:01:50]}  axb4 {[%clk 0:00:08]} 27. Nxg7 {[%clk 0:01:50]}  Qxg7 {[%clk 0:00:06]} 28. axb4 {[%clk 0:01:47]}  b5 {[%clk 0:00:00]} 29. Qh3 {[%clk 0:01:28]} 1-0


[Site "https://www.chess.com"]